fUSD/lending_fUSD_20240329
["ID","MTS","AMOUNT","RATE_DAILY","PERIOD"]
[320912343,1711705833530,-1123.48233042,0.00043068,2]
[320912344,1711705833541,-530.38881895,0.00043068,2]
[320912345,1711705833552,-7575.33696447,0.00043068,2]
[320912346,1711705833563,-150.99,0.00043068,10]
[320912347,1711705833572,-150.99,0.00043068,2]
[320912348,1711705833582,-499.99,0.00043068,2]
[320912349,1711705833591,-608.54,0.00043731,2]
[320912350,1711705833601,-155.61498508,0.0004399,4]
[320912351,1711705833611,-155.57064047,0.0004399,4]
[320912352,1711705833620,-150.0,0.00045095,2]
[320912353,1711705833629,-1201.14,0.00045306,2]
[320912354,1711705833638,-3046.29,0.00045334,2]
[320912355,1711705833647,-3753.5908804,0.00045349,2]
[320912359,1711705833731,-635.8391196,0.00045349,2]
[320912362,1711705833741,-1988.86,0.00045397,120]
[320912363,1711705833750,-500.0,0.00045397,2]
[320912366,1711705833760,-769.40841776,0.000454,2]
[320912367,1711705833769,-542.56,0.00045406,2]
[320912369,1711705833779,-2172.16,0.00045422,120]
[320912371,1711705833789,-888.92,0.00045478,60]
[320912373,1711705833798,-150.0,0.00045481,2]
[320912375,1711705833807,-1133.38,0.00045483,2]
[320912377,1711705833818,-500.0,0.0004549,2]
[320912379,1711705833827,-250.0,0.00045507,112]
[320912381,1711705833837,-176.13,0.00045543,120]
[320912383,1711705833846,-163.75,0.00045556,120]
[320912385,1711705833856,-158.51,0.00045565,15]
[320912387,1711705833866,-500.0,0.000456,2]
[320912389,1711705833875,-155.72799469,0.00045696,4]
[320912392,1711705833886,-200.0,0.00045696,2]
[320912394,1711705833895,-17490.21604425,0.00045698,2]
[320912396,1711705833907,-1867.57091508,0.00045698,2]
[320912398,1711705833918,-495.48279711,0.00045698,2]
[320912400,1711705833930,-4046.73024356,0.00045698,2]
[320912402,1711705833938,-3581.74,0.00045713,2]
[320912404,1711705833948,-250.0,0.00045719,120]
[320912406,1711705833958,-182.34,0.00045746,2]
[320912407,1711705833968,-7196.83,0.0004577,2]
[320912408,1711705833978,-250.0,0.0004577,2]
[320912409,1711705833987,-1377.44,0.00045827,2]
[320912410,1711705833997,-182.34,0.00045872,2]
[320912411,1711705834007,-500.0,0.00045872,2]
[320912412,1711705834016,-608.54,0.00045995,2]
[320912413,1711705834026,-182.34,0.00045997,2]
[320912414,1711705834036,-1500.0,0.00046,3]
[320912415,1711705834045,-9726.01,0.00046097,2]
[320912416,1711705834054,-182.34,0.00046123,2]
[320912417,1711705834065,-8965.02195037,0.00046145,2]
[320912418,1711705834090,-6567.97804963,0.00046145,2]
[320912419,1711705834099,-1586.60533547,0.00046145,2]
[320912420,1711705834138,-396.2893793,0.00046145,2]
[320912424,1711705838185,-4745.25528523,0.00046145,2]
[320912425,1711705838195,-159.87362639,0.00046216,30]
[320912426,1711705838204,-182.34,0.00046248,2]
[320912427,1711705838213,-182.34,0.00046374,2]
[320912428,1711705838223,-713.77,0.00046436,2]
[320912429,1711705838239,-419.67996272,0.00046475,120]
[320912430,1711705838303,-1320.95003728,0.00046475,120]
[320912431,1711705838313,-106.36959436,0.00046499,2]
[320912436,1711705842719,-75.97040564,0.00046499,2]
[320912437,1711705842728,-880.0,0.00046575,2]
[320912438,1711705842738,-166.22,0.00046586,120]
[320912439,1711705842747,-182.34,0.00046624,2]
[320912440,1711705842757,-182.34,0.0004675,2]
[320912441,1711705842766,-357.2482,0.00046846,4]
[320912442,1711705842776,-1787.84839326,0.00046846,4]
[320912443,1711705842845,-1718.67865912,0.00046846,4]
[320912444,1711705842856,-516.25603224,0.00046846,4]
[320912445,1711705843010,-353.29318674,0.00046846,4]
[320912463,1711705843271,-1139.60371702,0.00046846,4]
[320912465,1711705843282,-1715.40588635,0.00046847,4]
[320912467,1711705843295,-1024.10243541,0.00046847,30]
[320912471,1711705843329,-4571.29656459,0.00046847,30]
[320912473,1711705843338,-182.34,0.00046875,2]
[320912475,1711705843347,-215.54,0.00046921,2]
[320912476,1711705843356,-182.34,0.00047001,2]
[320912478,1711705843366,-182.34,0.00047126,2]
[320912480,1711705843377,-2136.52986414,0.00047233,2]
[320912491,1711705843502,-373.73013586,0.00047233,2]
[320912492,1711705843511,-6278.04327471,0.00047245,2]
[320912494,1711705843521,-47.26296918,0.00047245,2]
[320912496,1711705843533,-288.12560972,0.00047245,2]
[320912499,1711705843558,-2174.8714211,0.00047245,2]
[320912501,1711705843567,-182.34,0.00047252,2]
[320912503,1711705843578,-2510.26,0.00047258,2]
[320912505,1711705843586,-2510.26,0.0004727,2]
[320912506,1711705843595,-2510.26,0.00047282,2]
[320912508,1711705843605,-2510.26,0.00047295,2]
[320912510,1711705843614,-2510.26,0.00047307,2]
[320912512,1711705843623,-2038.64987604,0.0004732,2]
[320912762,1711705846236,-471.61012396,0.0004732,2]
[320912764,1711705846246,-240.38987604,0.00047332,2]
[320912766,1711705846259,-2269.87012396,0.00047332,2]
[320912768,1711705846270,-2510.26,0.00047345,2]
[320912770,1711705846280,-2510.26,0.00047357,2]
[320912772,1711705846291,-2510.26,0.00047369,2]
[320912775,1711705846304,-210.0,0.00047374,5]
[320912777,1711705846314,-182.34,0.00047377,2]
[320912779,1711705846324,-2510.26,0.00047382,2]
[320912781,1711705846335,-726.74987604,0.00047394,2]
[320912800,1711705846519,-1783.51012396,0.00047394,2]
[320912801,1711705846529,-2510.26,0.00047407,2]
[320912802,1711705846539,-2510.26,0.00047419,2]
[320912803,1711705846549,-2510.26,0.00047432,2]
[320912804,1711705846559,-2510.26,0.00047444,2]
[320912805,1711705846569,-2510.26,0.00047457,2]
[320912806,1711705846579,-2510.26,0.00047469,2]
[320912807,1711705846589,-169.21,0.00047475,2]
[320912808,1711705846598,-182.34,0.00047503,2]
[320912810,1711705846608,-17340.28466694,0.00047525,4]
[320912812,1711705846617,-418.43,0.00047608,2]
[320912814,1711705846627,-182.34,0.00047628,2]
[320912816,1711705846637,-182.34,0.00047754,2]
[320912818,1711705846646,-6278.04327462,0.00047762,2]
[320912821,1711705846656,-22796.62668994,0.00047877,2]
[320912823,1711705846666,-182.34,0.00047879,2]
[320912825,1711705846675,-644.17906747,0.000479,4]
[320912827,1711705846685,-2463.44001996,0.00047958,2]
[320912829,1711705846694,-182.9480091,0.00047958,10]
[320912831,1711705846703,-388.58001896,0.00047958,43]
[320912833,1711705846713,-354.30762136,0.00047958,2]
[320912834,1711705846722,-290.42596992,0.0004799,2]
[320912837,1711705846732,-290.42596992,0.0004799,2]
[320912839,1711705846742,-290.42596992,0.0004799,2]
[320912841,1711705846752,-172.2425979,0.0004799,2]
[320912843,1711705846765,-255.8074021,0.0004799,2]
[320912845,1711705846775,-61.44119817,0.0004799,2]
[320912851,1711705870768,635464.90917896,0.00018,2]
[320912853,1711705929992,1405.26762779,0.00021,2]
[320912857,1711705990975,32906.52294931,0.000225,2]
[320912860,1711706074200,238.06297076,0.00022,2]
[320912861,1711706075310,-860.36301045,0.00037,90]
[320912862,1711706075454,460.41366992,0.000225,2]
[320912863,1711706076544,287.12453816,0.000225,2]
[320912864,1711706078016,1051.52158806,0.00022,2]
[320912867,1711706090526,286.91972146,0.000225,2]
[320912868,1711706090826,768.48954834,0.000225,2]
[320912869,1711706093887,-8758.50469186,0.00037,4]
[320912870,1711706103803,297.1834851,0.00022,2]
[320912871,1711706105184,200.10812882,0.00022,2]
[320912872,1711706108549,169.25481651,0.00022,2]
[320912873,1711706113188,1363.92466986,0.00022,2]
[320912874,1711706134747,1363.92466986,0.00022,2]
[320912875,1711706154857,1363.92466986,0.00022,2]
[320912876,1711706189463,1031.2102017,0.00022,2]
[320912877,1711706194759,1364.3413004,0.00022,2]
[320912878,1711706203226,367.38754535,0.00022,2]
[320912879,1711706203660,408.12514721,0.0002134,2]
[320912880,1711706209222,865.10894036,0.00022,2]
[320912881,1711706209451,375.57059102,0.00022,2]
[320912882,1711706210220,738.73771562,0.000165,2]
[320912883,1711706210541,252.75494324,0.00022,2]
[320912884,1711706210756,1364.3413004,0.00022,2]
[320912885,1711706214544,287.02212981,0.00022,2]
[320912886,1711706215397,1464.4092569,0.00022,2]
[320912887,1711706215753,942.8907183,0.00022,2]
[320912888,1711706216502,155.53892414,0.00022,2]
[320912889,1711706219786,948.9259237,0.000209,2]
[320912890,1711706223103,318.33273827,0.00022,2]
[320912891,1711706224776,292.17207754,0.00022,2]
[320912892,1711706230758,1364.3413004,0.00022,2]
[320912893,1711706250756,1364.3413004,0.00022,2]
[320912894,1711706270766,1364.3413004,0.00022,2]
[320912895,1711706294768,1364.3413004,0.00022,2]
[320912896,1711706322769,1364.3413004,0.00022,2]
[320912897,1711706340769,1364.3413004,0.00022,2]
[320912898,1711706360780,373.34280479,0.00022,2]
[320912899,1711706372581,-3130.0,0.0003999,2]
[320912900,1711706388476,-0.26989241,0.0003999,2]
[320912901,1711706388498,-2385.73010759,0.000402,2]
[320912902,1711706402138,150.0,0.00022,2]
[320912903,1711706402323,150.0,0.00022,2]
[320912904,1711706402723,150.0,0.00022,2]
[320912905,1711706402893,150.0,0.00022,2]
[320912906,1711706403096,230.68020652,0.00022,2]
[320912908,1711706551811,949.37404731,0.000209,2]
[320912909,1711706552352,300.22579248,0.00022,2]
[320912910,1711706573796,167.54766992,0.00022,2]
[320912911,1711706577804,326.01948839,0.000209,2]
[320912912,1711706592411,155.0,0.00022,2]
[320912913,1711706604210,1030.29843897,0.00015675,2]
[320912914,1711706610274,172.95291002,0.000209,2]
[320912915,1711706713718,155.0,0.000209,2]
[320912916,1711706735178,325814.82029211,0.000209,2]
[320912917,1711706735202,500000.0,0.000209,2]
[320912918,1711706735232,2000.0,0.000209,2]
[320912919,1711706735258,1787.0,0.000209,2]
[320912920,1711706735292,100000.0,0.000209,2]
[320912921,1711706735318,587367.0,0.000209,2]
[320912922,1711706735348,392153.81438456,0.000209,2]
[320912923,1711706735632,155.0,0.000209,2]
[320912924,1711706771279,-155.0,0.00036161,4]
[320912925,1711706771325,-652.85136823,0.00036161,4]
[320912926,1711706771349,-155.0,0.00036162,4]
[320912927,1711706771379,-574.16034269,0.00036162,4]
[320912928,1711706771428,-155.0,0.00036163,4]
[320912929,1711706771464,-948.00779616,0.00036163,15]
[320912930,1711706771491,-1084.30120731,0.00036163,4]
[320912931,1711706771512,-204.885503,0.00036164,14]
[320912932,1711706771533,-204.885503,0.00036986,14]
[320912933,1711706771555,-204.885503,0.00037808,14]
[320912934,1711706771577,-204.885503,0.0003863,14]
[320912935,1711706771602,-204.885503,0.00039452,14]
[320912936,1711706771623,-605.2318539,0.00039699,4]
[320912937,1711706771646,-204.885503,0.00040274,14]
[320912938,1711706772976,360.47859675,0.0003616,4]
[320912939,1711706775577,6125.78714907,0.00036161,4]
[320912940,1711706776701,6666.80213559,0.00036161,4]
[320912941,1711706779577,703.61907318,0.00036161,4]
[320912942,1711706816220,397.90385632,0.00039698,4]
[320912943,1711706824497,155.0,0.00039698,4]
[320912944,1711706860184,155.0,0.00039599,4]
[320912945,1711706868461,887.26138261,0.00039599,4]
[320912946,1711706953166,-789.7328678,0.00035961,2]
[320912960,1711707032588,-546.83971733,0.00036059,2]
[320912961,1711707032597,-20.30028267,0.0003606,2]
[320912962,1711707032610,-129.69971733,0.0003606,2]
[320912963,1711707032621,-1358.74142889,0.00036061,4]
[320912964,1711707032637,-6238.65565643,0.00036061,4]
[320912965,1711707032648,-670.35804,0.00036061,4]
[320912966,1711707032698,-300.44655367,0.00036061,4]
[320912967,1711707032715,-297.14994958,0.00036061,4]
[320912968,1711707032807,-3977.33075568,0.00036061,4]
[320912969,1711707032826,-1349.65021479,0.00036061,4]
[320912971,1711707032837,-648.65949507,0.00036062,2]
[320912973,1711707032853,-2400.67482494,0.00036062,2]
[320912975,1711707032874,-516.12049322,0.00036062,2]
[320912978,1711707032886,-746.22848494,0.00036062,2]
[320913007,1711707038297,-1872.11360183,0.00036062,2]
[320913008,1711707038306,-155.0,0.00039666,4]
[320913009,1711707038315,-155.0,0.00039666,4]
[320913010,1711707038325,-210.0,0.00039667,4]
[320913011,1711707038334,-819.0,0.000397,2]
[320913012,1711707038344,-151.87877871,0.00041818,2]
[320913013,1711707038353,-804.13608363,0.00042321,4]
[320913014,1711707038363,-411.97553914,0.00042322,4]
[320913015,1711707038372,-151.87877871,0.00042325,2]
[320913016,1711707038382,-403.48297679,0.00042737,4]
[320913017,1711707038394,-6597.41662215,0.00042737,4]
[320913018,1711707038403,-619.28,0.00042738,2]
[320913019,1711707038412,-151.87877871,0.00042832,2]
[320913020,1711707038422,-150.99,0.0004308,10]
[320913021,1711707038431,-310.0,0.00043186,4]
[320913022,1711707038441,-499.99,0.00043186,2]
[320913023,1711707038450,-290.6053586,0.00043196,4]
[320913024,1711707038459,-151.87877871,0.00043339,2]
[320913025,1711707038469,-293.0,0.00043633,4]
[320913026,1711707038478,-151.87877871,0.00043845,2]
[320913027,1711707038488,-151.87877871,0.00044352,2]
[320913028,1711707038497,-570.06,0.00044717,2]
[320913029,1711707038506,-151.87877871,0.00044859,2]
[320913030,1711707038517,-5449.99038521,0.00045113,4]
[320913031,1711707038526,-313.84741085,0.00045116,4]
[320913032,1711707038535,-151.87877871,0.00045366,2]
[320913033,1711707038545,-1500.0,0.00045652,2]
[320913034,1711707038554,-11236.71,0.00045662,2]
[320913035,1711707038564,-2925.61,0.00045743,2]
[320913036,1711707038573,-182.34,0.00045753,2]
[320913037,1711707038583,-356.88,0.0004578,2]
[320913038,1711707038592,-151.87877871,0.00045873,2]
[320913039,1711707038601,-113.06149354,0.00046174,2]
[320913040,1711707038613,-1139.93850646,0.00046174,2]
[320913041,1711707038623,-1657.38,0.00046245,120]
[320913042,1711707038636,-151.87877871,0.0004638,2]
[320913043,1711707038645,-166.22,0.00046613,120]
[320913044,1711707038655,-3631.12,0.00046613,2]
[320913046,1711707038664,-176.13,0.00046621,120]
[320913048,1711707038674,-1010.39616778,0.00046664,2]
[320913050,1711707038684,-250.0,0.00046665,112]
[320913051,1711707038693,-169.21,0.00046667,2]
[320913053,1711707038703,-3.18829805,0.00046708,15]
[320913054,1711707038717,-155.32170195,0.00046708,15]
[320913055,1711707038727,-4166.49,0.00046744,2]
[320913056,1711707038736,-1000.0,0.00046832,2]
[320913057,1711707038746,-1450.52,0.00046857,120]
[320913058,1711707038756,-151.87877871,0.00046886,2]
[320913059,1711707038766,-1182.1,0.00046896,10]
[320913060,1711707038775,-570.06,0.00046981,2]
[320913061,1711707038785,-1061.66476026,0.00047,117]
[320913062,1711707038794,-152.0,0.0004725,3]
[320913063,1711707038804,-151.87877871,0.00047393,2]
[320913064,1711707038813,-400.0,0.000474,17]
[320913065,1711707038822,-300.0,0.000474,17]
[320913066,1711707038832,-800.0,0.000475,17]
[320913067,1711707038841,-700.0,0.000475,17]
[320913068,1711707038850,-197.25016,0.0004751,37]
[320913069,1711707038860,-197.25015,0.0004751,37]
[320913070,1711707038870,-197.25016,0.0004755,38]
[320913071,1711707038880,-353.00300357,0.000476,2]
[320913072,1711707038889,-1200.0,0.000476,17]
[320913073,1711707038899,-1000.0,0.000476,17]
[320913074,1711707038909,-1600.0,0.000477,17]
[320913075,1711707038919,-1400.0,0.000477,17]
[320913076,1711707038928,-1249.79499461,0.000477,2]
[320913077,1711707038938,-155.0,0.00047756,4]
[320913078,1711707038948,-2000.0,0.000478,17]
[320913079,1711707038957,-1800.0,0.000478,17]
[320913080,1711707038967,-2470.8956,0.0004788,2]
[320913081,1711707038978,-157.032918,0.00047888,88]
[320913082,1711707038989,-157.032918,0.00047888,89]
[320913083,1711707038999,-157.032918,0.00047888,90]
[320913084,1711707039009,-157.032918,0.00047888,91]
[320913085,1711707039019,-157.032918,0.00047888,92]
[320913086,1711707039028,-157.032918,0.00047888,93]
[320913087,1711707039038,-157.032918,0.00047888,94]
[320913088,1711707039048,-3173.11438447,0.0004789,2]
[320913089,1711707039058,-2432.8242,0.0004789,2]
[320913090,1711707039067,-432.3772,0.00047896,2]
[320913091,1711707039077,-4416.12912972,0.00047898,2]
[320913092,1711707039112,-444.11719502,0.00047898,2]
[320913093,1711707039209,-304.54921121,0.00047898,2]
[320913094,1711707039219,-551.7067369,0.00047898,2]
[320913095,1711707039228,-489.55939967,0.00047898,2]
[320913096,1711707039242,-510.44060033,0.00047898,2]
[320913097,1711707039251,-1265.60902898,0.00047898,2]
[320913098,1711707039264,-6876.95327102,0.00047898,2]
[320913099,1711707039274,-551.70673689,0.00047899,2]
[320913100,1711707039284,-551.70673689,0.00047899,2]
[320913101,1711707039294,-551.70673689,0.000479,2]
[320913102,1711707039304,-5653.2157,0.000479,10]
[320913103,1711707039314,-155.44386384,0.000479,30]
[320913104,1711707039324,-2590.0341,0.000479,2]
[320913105,1711707039334,-5000.0,0.000479,2]
[320913106,1711707039343,-551.70673689,0.000479,2]
[320913107,1711707039353,-400.0,0.000479,17]
[320913108,1711707039363,-151.87877871,0.000479,2]
[320913109,1711707039373,-300.0,0.000479,17]
[320913110,1711707039382,-471.83421854,0.000479,2]
[320913111,1711707039391,-151.93226217,0.000479,36]
[320913112,1711707039401,-310.86401516,0.000479,43]
[320913113,1711707039411,-292.76061426,0.000479,25]
[320913114,1711707039421,-1000.0,0.00047918,2]
[320913115,1711707039431,-179.6029038,0.0004793,23]
[320913116,1711707039441,-937.89664361,0.0004793,23]
[320913117,1711707039450,-1200.0,0.00047945,2]
[320913118,1711707039460,-151.032918,0.00047948,95]
[320913119,1711707039469,-151.032918,0.00047948,94]
[320913120,1711707039479,-151.032918,0.00047948,93]
[320913121,1711707039489,-151.032918,0.00047948,92]
[320913122,1711707039501,-151.032918,0.00047948,91]
[320913123,1711707039512,-151.032918,0.00047948,90]
[320913124,1711707039521,-151.032918,0.00047948,89]
[320913125,1711707039531,-151.032918,0.00047948,88]
[320913126,1711707039540,-151.032918,0.00047948,87]
[320913127,1711707039550,-151.032918,0.00047948,86]
[320913128,1711707039560,-159.0,0.0004797,15]
[320913129,1711707039570,-250.0,0.0004797,15]
[320913130,1711707039581,-159.0,0.0004798,15]
[320913131,1711707039590,-250.0,0.0004798,15]
[320913132,1711707039599,-11232.76592966,0.0004798,12]
[320913149,1711707040339,-406.24944498,0.0004798,12]
[320913150,1711707040477,-696.04362912,0.0004798,12]
[320913151,1711707040715,-2751.93516624,0.0004798,12]
[320913152,1711707040725,-379.1,0.00047988,2]
[320913153,1711707040734,-159.0,0.0004799,15]
[320913154,1711707040744,-250.0,0.0004799,15]
[320913155,1711707040753,-2000.0,0.0004799,7]
[320913156,1711707040762,-200.0,0.0004799,7]
[320913158,1711707040772,-197.25015,0.0004799,40]
[320913159,1711707040781,-197.25016,0.0004799,40]
[320913160,1711707040790,-197.25016,0.0004799,40]
[320913161,1711707040799,-379.1,0.0004799,2]
[320913162,1711707040809,-379.1,0.0004799,2]
[320913163,1711707040818,-379.1,0.0004799,2]
[320913164,1711707040828,-379.1,0.0004799,2]
[320913165,1711707040839,-379.1,0.0004799,2]
[320913166,1711707040848,-379.1,0.0004799,2]
[320913167,1711707040858,-379.1,0.0004799,2]
[320913168,1711707040867,-379.1,0.0004799,2]
[320913169,1711707040876,-379.1,0.0004799,2]
[320913170,1711707040886,-691.12185939,0.00047996,30]
[320913171,1711707040895,-980.43209036,0.00047996,4]
[320913172,1711707040904,-281.13573391,0.00047996,4]
[320913173,1711707040914,-180.09860931,0.00047996,4]
[320913174,1711707040923,-155.0,0.00047996,4]
[320913175,1711707040933,-155.55578441,0.00047996,4]
[320913176,1711707040943,-484.50959772,0.00047996,4]
[320913177,1711707040953,-155.41216958,0.00047996,4]
[320913178,1711707040963,-155.0,0.00047996,4]
[320913179,1711707040972,-388.1261824,0.00047996,4]
[320913180,1711707040982,-374.60114672,0.00047996,4]
[320913181,1711707040992,-4474.10963774,0.00047996,4]
[320913182,1711707041001,-155.38603096,0.00047996,4]
[320913183,1711707041011,-155.0,0.00047996,4]
[320913184,1711707041021,-155.7794274,0.00047996,4]
[320913185,1711707041031,-299.18533016,0.00047996,4]
[320913186,1711707041042,-155.34111534,0.00047996,4]
[320913187,1711707041052,-155.77999544,0.00047996,4]
[320913188,1711707041061,-187.79767231,0.00047996,4]
[320913189,1711707041071,-156.2328161,0.00047996,4]
[320913190,1711707041081,-155.0,0.00047996,4]
[320913191,1711707041091,-406.08005128,0.00047996,4]
[320913192,1711707041101,-207.11267069,0.00047996,4]
[320913193,1711707041110,-198.30849815,0.00047996,4]
[320913194,1711707041120,-155.57447189,0.00047996,4]
[320913195,1711707041130,-155.0,0.00047996,4]
[320913196,1711707041139,-155.11630653,0.00047996,4]
[320913197,1711707041149,-167.21506477,0.00047996,4]
[320913198,1711707041158,-155.27147983,0.00047996,4]
[320913199,1711707041167,-155.9277883,0.00047996,4]
[320913200,1711707041177,-155.77109055,0.00047996,4]
[320913201,1711707041186,-1235.12264339,0.00047996,4]
[320913202,1711707041196,-225.95145939,0.00047996,4]
[320913203,1711707041206,-411.0,0.00047996,4]
[320913204,1711707041216,-548.41378476,0.00047997,4]
[320913205,1711707041226,-1225.70071992,0.00047997,2]
[320913206,1711707041235,-103828.1451229,0.00047998,2]
[320913207,1711707041245,-31623.9399858,0.00047998,2]
[320913208,1711707041254,-751.55662504,0.00047998,5]
[320913209,1711707041264,-151.032918,0.00047998,88]
[320913210,1711707041276,-151.032918,0.00047998,87]
[320913211,1711707041286,-151.032918,0.00047998,86]
[320913212,1711707041295,-151.032918,0.00047998,85]
[320913213,1711707041305,-151.032918,0.00047998,84]
[320913214,1711707041315,-151.032918,0.00047998,83]
[320913215,1711707041325,-151.032918,0.00047998,82]
[320913216,1711707041335,-151.032918,0.00047998,81]
[320913217,1711707041344,-151.032918,0.00047998,80]
[320913218,1711707041353,-151.032918,0.00047998,79]
[320913219,1711707041362,-500.0,0.00047999,120]
[320913220,1711707041372,-403.32926475,0.00047999,120]
[320913221,1711707041381,-500.0,0.00047999,120]
[320913222,1711707041391,-500.0,0.00047999,120]
[320913223,1711707041400,-150.0,0.00047999,7]
[320913224,1711707041410,-150.0,0.00047999,7]
[320913225,1711707041421,-175.0,0.00048,7]
[320913226,1711707041431,-168.27384216,0.00048,21]
[320913234,1711707043385,-639.94604832,0.00035961,4]
[320913235,1711707043394,-1642.29334664,0.000479,2]
[320913236,1711707043403,-27031.1623513,0.00048,21]
[320913237,1711707043414,-40126.84519965,0.00048,21]
[320913238,1711707043568,-2734.10863025,0.00048,21]
[320913239,1711707043742,-8861.93741295,0.00047996,4]
[320913240,1711707043752,-33545.29784638,0.00048,21]
[320913241,1711707043811,-21336.2950263,0.00048,21]
[320913254,1711707046376,-305.69134358,0.00047997,7]
[320913290,1711707047028,-23.74978654,0.00047997,7]
[320913292,1711707047037,-61976.25021346,0.00048,21]
[320913297,1711707047076,-95301.36683137,0.00048,21]
[320913304,1711707047132,-101551.31755076,0.00048,21]
[320913306,1711707047142,-1500.0,0.00048,3]
[320913307,1711707047151,-4809306.16106887,0.00048,5]
[320913310,1711707047162,-596429.08893113,0.00048,5]
[320913312,1711707047171,-225.50660083,0.00048,30]
[320913314,1711707047180,-150.0,0.00048,30]
[320913316,1711707047190,-150.0,0.00048,30]
[320913318,1711707047199,-151.46631672,0.00048,30]
[320913320,1711707047208,-150.0,0.00048,30]
[320913322,1711707047217,-172.48230441,0.0004803,24]
[320913324,1711707047225,-225.50660083,0.00048038,30]
[320913325,1711707047235,-150.0,0.00048066,30]
[320913326,1711707047243,-225.50660083,0.00048077,30]
[320913327,1711707047252,-150.0,0.00048084,30]
[320913328,1711707047261,-225.50660083,0.00048115,30]
[320913329,1711707047271,-1155.49316775,0.0004813,4]
[320913330,1711707047456,-150.0,0.00048131,30]
[320913331,1711707047467,-182.34,0.00048137,2]
[320913332,1711707047476,-225.50660083,0.00048154,30]
[320913333,1711707047486,-150.0,0.00048169,30]
[320913334,1711707047496,-225.50660083,0.00048192,30]
[320913335,1711707047506,-150.0,0.00048197,30]
[320913336,1711707047515,-3173.11438446,0.0004822,2]
[320913337,1711707047525,-310.86401515,0.00048229,44]
[320913338,1711707047534,-225.50660083,0.0004823,30]
[320913339,1711707047543,-5164.7955359,0.00048232,2]
[320913340,1711707047553,-150.0,0.00048253,30]
[320913341,1711707047562,-1491.2938486,0.00048256,2]
[320913342,1711707047572,-150.0,0.00048262,30]
[320913343,1711707047583,-225.50660083,0.00048269,30]
[320913344,1711707047592,-937.89664352,0.00048291,24]
[320913345,1711707047601,-225.50660083,0.00048307,30]
[320913346,1711707047610,-150.0,0.00048325,2]
[320913347,1711707047619,-150.0,0.00048325,2]
[320913348,1711707047630,-150.0,0.00048328,30]
[320913349,1711707047640,-150.0,0.00048338,30]
[320913350,1711707047650,-225.50660083,0.00048345,30]
[320913351,1711707047660,-150.0,0.00048378,2]
[320913352,1711707047671,-150.0,0.00048378,2]
[320913353,1711707047682,-225.50660083,0.00048384,30]
[320913354,1711707047691,-251.28943828,0.00048389,4]
[320913355,1711707047703,-163.02404157,0.00048391,3]
[320913356,1711707047715,-150.0,0.00048393,30]
[320913357,1711707047726,-150.0,0.00048406,2]
[320913358,1711707047735,-150.0,0.00048406,2]
[320913359,1711707047745,-225.50660083,0.00048422,30]
[320913360,1711707047755,-150.0,0.00048422,30]
[320913361,1711707047766,-150.0,0.00048459,30]
[320913362,1711707047777,-225.50660083,0.00048461,30]
[320913363,1711707047787,-512.0,0.00048466,30]
[320913364,1711707047798,-150.0,0.00048475,30]
[320913365,1711707047807,-2925.61,0.00048483,2]
[320913366,1711707047817,-1120.77280023,0.00048485,2]
[320913367,1711707047827,-225.50660083,0.00048499,30]
[320913368,1711707047839,-278.96320182,0.000485,120]
[320913369,1711707047848,-150.0,0.00048507,30]
[320913370,1711707047858,-150.0,0.00048524,30]
[320913371,1711707047867,-225.50660083,0.00048537,30]
[320913372,1711707047876,-3173.11438446,0.0004855,2]
[320913373,1711707047887,-310.86401515,0.00048558,44]
[320913374,1711707047898,-5164.7955359,0.00048565,2]